fUST/lending_fUST_20250531
["ID","MTS","AMOUNT","RATE_DAILY","PERIOD"]
[363347548,1748686242742,-430.0,0.00021095,2]
[363347549,1748686242751,-1271.18,0.00021095,2]
[363347550,1748686242762,-1335.13,0.00021095,2]
[363347551,1748686242772,-1028.05,0.00021095,2]
[363347552,1748686242781,-1497.69,0.00021095,2]
[363347553,1748686242790,-530.8,0.00021095,2]
[363347554,1748686242799,-430.0,0.00021095,2]
[363347555,1748686242808,-461.43,0.00021095,2]
[363347557,1748686242818,-552.52,0.00021095,2]
[363347558,1748686242828,-580.66,0.00021095,2]
[363347560,1748686242837,-3000.0,0.000211,2]
[363347561,1748686242847,-212.77096907,0.000211,3]
[363347562,1748686242856,-12664.98044988,0.000211,3]
[363347563,1748686242867,-842.5625,0.000211,3]
[363347564,1748686242877,-3000.0,0.0002111,2]
[363347565,1748686242886,-3000.0,0.0002112,2]
[363347566,1748686242896,-600.0,0.0002112,2]
[363347567,1748686242905,-3000.0,0.0002113,2]
[363347568,1748686242915,-3000.0,0.0002114,2]
[363347569,1748686242924,-3000.0,0.0002115,2]
[363347570,1748686242933,-562.98,0.0002115,2]
[363347571,1748686242943,-978.53,0.0002115,2]
[363347573,1748686242952,-3000.0,0.0002116,2]
[363347575,1748686242962,-3000.0,0.0002117,2]
[363347577,1748686242971,-3000.0,0.0002118,2]
[363347579,1748686242980,-3000.0,0.0002119,2]
[363347580,1748686242990,-3000.0,0.000212,2]
[363347581,1748686242999,-500.0,0.00021207,2]
[363347582,1748686243008,-500.0,0.00021207,2]
[363347583,1748686243018,-500.0,0.00021207,2]
[363347584,1748686243027,-500.0,0.00021207,2]
[363347585,1748686243036,-3000.0,0.0002121,2]
[363347586,1748686243046,-1624.3958544,0.0002121,2]
[363347587,1748686243056,-409.136036,0.0002121,2]
[363347588,1748686243065,-409.136036,0.0002121,2]
[363347589,1748686243075,-3000.0,0.0002122,2]
[363347590,1748686243084,-3000.0,0.0002123,2]
[363347592,1748686243093,-159.82013329,0.00021233,2]
[363347594,1748686243102,-159.82013329,0.00021233,2]
[363347596,1748686243111,-3000.0,0.0002124,2]
[363347598,1748686243120,-153.841364,0.00021249,3]
[363347605,1748686243242,-3000.0,0.0002125,2]
[363347606,1748686243252,-153.841364,0.00021256,4]
[363347607,1748686243262,-3000.0,0.0002126,2]
[363347608,1748686243271,-3000.0,0.0002127,2]
[363347609,1748686243280,-151.0,0.0002127,2]
[363347610,1748686243290,-151.0,0.0002127,2]
[363347611,1748686243300,-151.0,0.0002127,2]
[363347613,1748686243309,-151.0,0.0002127,2]
[363347614,1748686243319,-2369.67619574,0.00021279,5]
[363347615,1748686243329,-3000.0,0.0002128,2]
[363347616,1748686243339,-3000.0,0.0002129,2]
[363347617,1748686243348,-3000.0,0.000213,2]
[363347618,1748686243359,-500.0,0.00021306,2]
[363347619,1748686243369,-500.0,0.00021306,2]
[363347620,1748686243378,-500.42355388,0.00021306,2]
[363347621,1748686243387,-500.0,0.00021306,2]
[363347622,1748686243397,-347.47889072,0.00021306,2]
[363347623,1748686243407,-500.0,0.00021306,2]
[363347624,1748686243416,-500.0,0.00021306,2]
[363347625,1748686243425,-500.0,0.00021306,2]
[363347626,1748686243435,-500.0,0.00021306,2]
[363347627,1748686243445,-500.0,0.00021306,2]
[363347628,1748686243454,-500.0,0.00021306,2]
[363347629,1748686243464,-500.0,0.00021306,2]
[363347630,1748686243475,-3000.0,0.0002131,2]
[363347632,1748686243485,-558.70945928,0.00021314,2]
[363347633,1748686243495,-3000.0,0.0002132,2]
[363347634,1748686243504,-5000.0,0.00021327,2]
[363347635,1748686243515,-3000.0,0.0002133,2]
[363347636,1748686243525,-162.637626,0.0002133,2]
[363347637,1748686243534,-152.087997,0.0002133,2]
[363347638,1748686243543,-1029.782581,0.0002133,2]
[363347639,1748686243553,-1029.782581,0.0002133,2]
[363347640,1748686243563,-359.292158,0.0002133,2]
[363347641,1748686243572,-359.292158,0.0002133,2]
[363347642,1748686243582,-212.735993,0.0002133,2]
[363347643,1748686243591,-212.735993,0.0002133,2]
[363347644,1748686243600,-151.0,0.0002133,2]
[363347645,1748686243610,-151.0,0.0002133,2]
[363347646,1748686243620,-151.0,0.0002133,2]
[363347647,1748686243629,-151.0,0.0002133,2]
[363347648,1748686243638,-3000.0,0.0002134,2]
[363347649,1748686243647,-600.0,0.0002134,2]
[363347650,1748686243656,-270.75430907,0.00021343,23]
[363347651,1748686243666,-3000.0,0.0002135,2]
[363347652,1748686243675,-3000.0,0.0002136,2]
[363347653,1748686243685,-616.17473697,0.00021362,2]
[363347654,1748686243694,-5684.98,0.00021369,2]
[363347655,1748686243703,-697.59,0.00021369,2]
[363347656,1748686243712,-1509.53,0.00021369,2]
[363347657,1748686243721,-430.0,0.00021369,2]
[363347658,1748686243730,-1271.18,0.00021369,2]
[363347659,1748686243739,-1335.13,0.00021369,2]
[363347660,1748686243749,-1028.05,0.00021369,2]
[363347661,1748686243758,-1497.69,0.00021369,2]
[363347662,1748686243767,-530.8,0.00021369,2]
[363347663,1748686243777,-430.0,0.00021369,2]
[363347664,1748686243788,-461.43,0.00021369,2]
[363347665,1748686243797,-552.52,0.00021369,2]
[363347666,1748686243806,-580.66,0.00021369,2]
[363347667,1748686243815,-231.0,0.0002137,3]
[363347668,1748686243825,-3000.0,0.0002137,2]
[363347669,1748686243834,-3000.0,0.0002138,2]
[363347670,1748686243843,-3000.0,0.0002139,2]
[363347671,1748686243853,-501.59646273,0.00021393,2]
[363347672,1748686243862,-341.58993269,0.00021393,2]
[363347673,1748686243871,-500.0,0.00021393,2]
[363347674,1748686243880,-151.0,0.00021393,2]
[363347675,1748686243889,-151.0,0.00021393,2]
[363347676,1748686243898,-151.0,0.00021393,2]
[363347677,1748686243907,-3000.0,0.000214,2]
[363347678,1748686243915,-500.0,0.000214,2]
[363347679,1748686243924,-500.0,0.000214,2]
[363347680,1748686243934,-500.0,0.000214,2]
[363347681,1748686243943,-502.27571044,0.000214,2]
[363347682,1748686243953,-502.26417517,0.000214,2]
[363347683,1748686243962,-500.0,0.000214,2]
[363347684,1748686243974,-500.0,0.000214,2]
[363347685,1748686243985,-500.0,0.000214,2]
[363347686,1748686243996,-500.0,0.000214,2]
[363347687,1748686244006,-500.0,0.000214,2]
[363347688,1748686244018,-600.0,0.000214,2]
[363347689,1748686244027,-500.0,0.000214,2]
[363347690,1748686244036,-500.0,0.000214,2]
[363347691,1748686244046,-160.19413256,0.000214,2]
[363347692,1748686244056,-3000.0,0.0002141,2]
[363347693,1748686244065,-500.0,0.00021413,2]
[363347694,1748686244074,-575.30694928,0.00021413,2]
[363347695,1748686244084,-4803.512304,0.0002142,2]
[363347696,1748686244093,-562.98,0.00021424,2]
[363347697,1748686244103,-978.53,0.00021424,2]
[363347698,1748686244112,-740.8087676,0.00021425,2]
[363347699,1748686244121,-900.0,0.00021452,2]
[363347700,1748686244131,-823.0,0.00021452,2]
[363347701,1748686244143,-270.75430907,0.00021475,24]
[363347702,1748686244152,-151.0,0.000215,3]
[363347703,1748686244162,-2000.0,0.000215,2]
[363347704,1748686244171,-159.82013329,0.00021507,2]
[363347705,1748686244180,-2369.67619574,0.00021521,5]
[363347706,1748686244190,-616.17473699,0.00021527,2]
[363347707,1748686244199,-2004.648516,0.0002156,3]
[363347708,1748686244208,-600.0,0.0002156,2]
[363347709,1748686244218,-157.04898683,0.00021577,2]
[363347710,1748686244227,-270.75430907,0.00021608,26]
[363347711,1748686244236,-151.0,0.00021643,2]
[363347712,1748686244246,-5684.98,0.00021643,2]
[363347713,1748686244255,-697.59,0.00021643,2]
[363347714,1748686244266,-151.000002,0.00021643,2]
[363347715,1748686244277,-1509.53,0.00021643,2]
[363347716,1748686244286,-546.15,0.00021643,2]
[363347717,1748686244296,-1271.18,0.00021643,2]
[363347718,1748686244305,-1335.13,0.00021643,2]
[363347719,1748686244316,-1028.05,0.00021643,2]
[363347720,1748686244326,-1497.69,0.00021643,2]
[363347721,1748686244335,-530.8,0.00021643,2]
[363347722,1748686244345,-430.0,0.00021643,2]
[363347723,1748686244355,-461.43,0.00021643,2]
[363347724,1748686244364,-552.52,0.00021643,2]
[363347725,1748686244373,-580.66,0.00021643,2]
[363347726,1748686244383,-562.98,0.00021698,2]
[363347727,1748686244393,-978.53,0.00021698,2]
[363347728,1748686244403,-1778.07,0.000217,2]
[363347729,1748686244418,-270.75430907,0.0002174,27]
[363347730,1748686244432,-500.0,0.00021755,2]
[363347731,1748686244446,-506.58068065,0.00021755,2]
[363347732,1748686244458,-150.0,0.0002176,2]
[363347733,1748686244469,-150.0,0.0002176,2]
[363347734,1748686244483,-150.0,0.0002176,2]
[363347735,1748686244495,-150.0,0.0002176,2]
[363347736,1748686244508,-962.0,0.0002176,2]
[363347737,1748686244522,-708.0,0.0002176,2]
[363347738,1748686244534,-2227.0,0.0002176,2]
[363347739,1748686244548,-409.136036,0.0002176,2]
[363347740,1748686244561,-409.136036,0.0002176,2]
[363347741,1748686244576,-2369.67619574,0.00021762,5]
[363347742,1748686244588,-13201.51477651,0.00021779,2]
[363347743,1748686244600,-75421.49998211,0.0002178,2]
[363347744,1748686244612,-1249.73802741,0.0002178,2]
[363347745,1748686244624,-151.0,0.0002178,2]
[363347746,1748686244637,-151.0,0.0002178,2]
[363347747,1748686244650,-151.0,0.0002178,2]
[363347748,1748686244662,-151.0,0.0002178,2]
[363347749,1748686244673,-151.0,0.0002178,2]
[363347750,1748686244683,-223.168507,0.0002178,2]
[363347751,1748686244696,-223.168507,0.0002178,2]
[363347752,1748686244708,-151.0,0.0002178,2]
[363347753,1748686244720,-1029.782581,0.0002178,2]
[363347754,1748686244733,-1029.782581,0.0002178,2]
[363347755,1748686244746,-359.292158,0.0002178,2]
[363347756,1748686244760,-359.292158,0.0002178,2]
[363347757,1748686244773,-212.735993,0.0002178,2]
[363347758,1748686244786,-212.735993,0.0002178,2]
[363347759,1748686244799,-151.0,0.0002178,2]
[363347760,1748686244810,-151.0,0.0002178,2]
[363347761,1748686244820,-151.0,0.0002178,2]
[363347762,1748686244830,-151.0,0.0002178,2]
[363347763,1748686244841,-774.0,0.0002178,2]
[363347764,1748686244854,-159.82013329,0.00021781,2]
[363347765,1748686244868,-9490.69,0.000218,2]
[363347766,1748686244880,-176.414694,0.00021836,2]
[363347767,1748686244891,-200.0,0.0002185,3]
[363347768,1748686244902,-1000.0,0.00021854,2]
[363347769,1748686244915,-1000.0,0.00021854,2]
[363347770,1748686244928,-1000.0,0.00021854,2]
[363347771,1748686244942,-540.41710014,0.00021854,2]
[363347772,1748686244955,-525.52033247,0.00021854,2]
[363347773,1748686244966,-1000.0,0.00021854,2]
[363347774,1748686244979,-1000.0,0.00021854,2]
[363347775,1748686244990,-1000.0,0.00021854,2]
[363347776,1748686245002,-1000.0,0.00021854,2]
[363347777,1748686245016,-1000.0,0.00021854,2]
[363347778,1748686245027,-270.75430907,0.00021873,29]
[363347779,1748686245038,-5000.0,0.00021875,2]
[363347780,1748686245049,-14594.36635198,0.0002188,2]
[363347781,1748686245060,-309.80006128,0.0002188,2]
[363347782,1748686245071,-155.0,0.0002188,2]
[363347783,1748686245083,-975.04,0.000219,2]
[363347784,1748686245094,-151.0,0.000219,2]
[363347785,1748686245105,-184.30823,0.000219,2]
[363347786,1748686245117,-151.0,0.000219,2]
[363347787,1748686245128,-200.0,0.00021917,2]
[363347788,1748686245141,-292.2741035,0.00021917,2]
[363347789,1748686245151,-574.76,0.00021917,2]
[363347790,1748686245163,-5684.98,0.00021917,2]
[363347791,1748686245174,-697.59,0.00021917,2]
[363347792,1748686245187,-1509.53,0.00021917,2]
[363347793,1748686245198,-1271.18,0.00021917,2]
[363347794,1748686245209,-1335.13,0.00021917,2]
[363347795,1748686245222,-1028.05,0.00021917,2]
[363347796,1748686245233,-500.0,0.00021917,2]
[363347797,1748686245244,-402.66404903,0.00021917,2]
[363347798,1748686245256,-1497.69,0.00021917,2]
[363347799,1748686245267,-530.8,0.00021917,2]
[363347800,1748686245279,-430.0,0.00021917,2]
[363347801,1748686245290,-461.43,0.00021917,2]
[363347802,1748686245300,-552.52,0.00021917,2]
[363347803,1748686245311,-580.66,0.00021917,2]
[363347804,1748686245322,-1007.04766132,0.00021948,2]
[363347805,1748686245334,-1008.86377791,0.00021948,2]
[363347806,1748686245345,-1000.0,0.00021948,2]
[363347807,1748686245357,-1000.0,0.00021948,2]
[363347808,1748686245368,-1000.0,0.00021948,2]
[363347809,1748686245380,-1004.31260326,0.00021948,2]
[363347810,1748686245391,-421.21542315,0.00021948,2]
[363347811,1748686245403,-1000.0,0.00021948,2]
[363347812,1748686245414,-1200.0,0.00021948,2]
[363347813,1748686245426,-1000.0,0.00021948,2]
[363347814,1748686245437,-1000.0,0.00021948,2]
[363347815,1748686245448,-251.44409794,0.0002196,2]
[363347816,1748686245460,-562.98,0.00021972,2]
[363347817,1748686245471,-978.53,0.00021972,2]
[363347818,1748686245484,-500.0,0.00021973,2]
[363347819,1748686245495,-500.0,0.00021973,2]
[363347820,1748686245508,-500.0,0.00021973,2]
[363347821,1748686245520,-500.0,0.00021973,2]
[363347822,1748686245530,-2200.0,0.00021991,2]
[363347823,1748686245539,-160.0,0.00021995,3]
[363347824,1748686245548,-160.0,0.00021995,5]
[363347825,1748686245558,-159614.27090699,0.00021998,2]
[363347826,1748686245567,-151.0,0.00021998,7]
[363347827,1748686245577,-153.17958,0.00021998,7]
[363347828,1748686245586,-151.0,0.00021998,7]
[363347829,1748686245596,-194.62863,0.00021998,7]
[363347830,1748686245605,-194.62863,0.00021998,7]
[363347831,1748686245615,-151.0,0.00021998,7]
[363347832,1748686245625,-151.0,0.00021998,7]
[363347833,1748686245634,-226.85162,0.00021998,7]
[363347834,1748686245644,-904.680919,0.00021998,7]
[363347835,1748686245653,-904.680919,0.00021998,7]
[363347836,1748686245663,-151.0,0.00021998,7]
[363347837,1748686245673,-3097.944437,0.00021998,2]
[363347838,1748686245682,-3097.944437,0.00021998,2]
[363347839,1748686245691,-151.0,0.00021998,7]
[363347840,1748686245701,-151.0,0.00021998,7]
[363347841,1748686245710,-223.168507,0.00021998,7]
[363347842,1748686245719,-223.168507,0.00021998,7]
[363347843,1748686245728,-151.0,0.00021998,7]
[363347844,1748686245738,-151.0,0.00021998,7]
[363347845,1748686245747,-263.805469,0.00021998,7]
[363347846,1748686245758,-263.805469,0.00021998,7]
[363347847,1748686245767,-352.038617,0.00021998,7]
[363347848,1748686245776,-352.038617,0.00021998,7]
[363347849,1748686245954,-1029.782581,0.00021998,7]
[363347850,1748686245989,-1029.782581,0.00021998,7]
[363347851,1748686246001,-359.292158,0.00021998,7]
[363347852,1748686246012,-409.136036,0.00021998,7]
[363347853,1748686246022,-359.292158,0.00021998,7]
[363347854,1748686246034,-409.136036,0.00021998,7]
[363347855,1748686246046,-154.280183,0.00021998,7]
[363347857,1748686246056,-212.735993,0.00021998,7]
[363347859,1748686246065,-212.735993,0.00021998,7]
[363347860,1748686246074,-151.0,0.00021998,7]
[363347861,1748686246083,-60.79785735,0.00021998,7]
[363347862,1748686246099,-90.20214265,0.00021998,7]
[363347863,1748686246109,-151.0,0.00021998,7]
[363347864,1748686246118,-151.0,0.00021998,7]
[363347865,1748686246127,-151.0,0.00021998,7]
[363347867,1748686246138,-151.0,0.00021998,7]
[363347869,1748686246149,-160.0,0.00021999,2]
[363347871,1748686246158,-160.0,0.00021999,2]
[363347872,1748686246168,-160.0,0.00021999,2]
[363347873,1748686246178,-500.0,0.00022,8]
[363347874,1748686246188,-425.62504067,0.00022,2]
[363347875,1748686246197,-846.61571148,0.00022,2]
[363347876,1748686246209,-4153.38428852,0.00022,2]
[363347877,1748686246219,-5000.0,0.00022,2]
[363347878,1748686246229,-5000.0,0.00022,2]
[363347879,1748686246238,-983.15633288,0.00022,2]
[363347880,1748686246334,-2951.37334778,0.00022,2]
[363347881,1748686246415,-3821.47031934,0.00022,2]
[363347882,1748686246425,-273.0,0.00022,2]
[363347883,1748686246435,-206.0,0.00022,2]
[363347884,1748686246445,-6490.86770807,0.00022,2]
[363347885,1748686246523,-9549.04929931,0.00022,2]
[363347886,1748686246539,-430.0,0.00016438,2]
[363347887,1748686246549,-28782.1513212,0.00022,2]
[363347888,1748686246561,-585.13435132,0.00022,2]
[363347889,1748686246667,-430.0,0.00016712,2]
[363347890,1748686246676,-430.0,0.00016986,2]
[363347891,1748686246686,-275.79,0.0001726,2]
[363347892,1748686246695,-405.0,0.00021477,2]
[363347893,1748686246705,-13472.76746421,0.00022,2]
[363347894,1748686246715,-1494.88406777,0.00022,2]
[363347895,1748686246730,-2380.37555558,0.00022,2]
[363347907,1748687144142,-300.0,0.00015333,2]
[363347908,1748687144677,-160.0,0.00015334,2]
[363347909,1748687144704,-5000.0,0.00015334,2]
[363347910,1748687144733,-483.02533338,0.00015803,2]
[363347911,1748687144762,-275.98930294,0.00015945,2]
[363347912,1748687144791,-157.04898683,0.00016338,2]
[363347913,1748687144818,-400.81391833,0.00016438,2]
[363347914,1748687144844,-430.0,0.00016438,2]
[363347915,1748687144867,-219.46690057,0.00016438,2]
[363347916,1748687144890,-430.0,0.00016438,2]
[363347917,1748687144915,-430.0,0.00016438,2]
[363347918,1748687144940,-430.0,0.00016438,2]
[363347919,1748687144966,-430.0,0.00016438,2]
[363347920,1748687144990,-347.38045522,0.00016438,2]
[363347921,1748687145019,-400.0,0.00016438,2]
[363347922,1748687145046,-217.0183802,0.00016438,2]
[363347923,1748687145072,-325.28808116,0.00016438,2]
[363347924,1748687145097,-430.0,0.00016438,2]
[363347925,1748687145120,-430.0,0.00016438,2]
[363347926,1748687145143,-212.68930549,0.00016438,2]
[363347927,1748687145168,-430.0,0.00016438,2]
[363347928,1748687145195,-218.52351208,0.00016438,2]
[363347929,1748687145226,-458.34631231,0.00016438,2]
[363347930,1748687145249,-430.0,0.00016438,2]
[363347931,1748687145273,-430.0,0.00016438,2]
[363347932,1748687145298,-401.24960383,0.00016438,2]
[363347933,1748687145330,-430.0,0.00016438,2]
[363347934,1748687145355,-430.0,0.00016438,2]
[363347935,1748687145382,-430.0,0.00016438,2]
[363347936,1748687145408,-430.0,0.00016438,2]
[363347937,1748687145434,-430.0,0.00016438,2]
[363347938,1748687145464,-430.0,0.00016438,2]
[363347939,1748687145490,-350.0,0.00016438,2]
[363347940,1748687145518,-450.0,0.00016438,2]
[363347941,1748687145545,-450.0,0.00016438,2]
[363347942,1748687145571,-430.0,0.00016438,2]
[363347943,1748687145596,-430.0,0.00016438,2]
[363347944,1748687145623,-430.0,0.00016438,2]
[363347945,1748687145648,-430.0,0.00016438,2]
[363347946,1748687145674,-430.0,0.00016438,2]
[363347947,1748687145701,-430.0,0.00016438,2]
[363347948,1748687145725,-430.0,0.00016438,2]
[363347949,1748687145749,-430.0,0.00016438,2]
[363347950,1748687145775,-430.0,0.00016438,2]
[363347951,1748687145801,-430.0,0.00016438,2]
[363347952,1748687145827,-430.0,0.00016438,2]
[363347953,1748687145851,-430.0,0.00016438,2]
[363347954,1748687145876,-430.0,0.00016438,2]
[363347955,1748687145902,-1835.86,0.00016438,2]
[363347956,1748687145927,-430.0,0.00016438,2]
[363347957,1748687145951,-400.0,0.00016438,2]
[363347958,1748687145976,-437.57,0.00016438,2]
[363347959,1748687146001,-430.0,0.00016438,2]
[363347960,1748687146028,-430.0,0.00016438,2]
[363347961,1748687146051,-430.0,0.00016438,2]
[363347962,1748687146075,-430.0,0.00016438,2]
[363347963,1748687146098,-569.46870404,0.00016438,2]
[363347964,1748687146123,-435.64955504,0.00016438,2]
[363347965,1748687146147,-430.0,0.00016438,2]
[363347966,1748687146170,-430.0,0.00016438,2]
[363347967,1748687146193,-430.0,0.00016438,2]
[363347968,1748687146216,-400.0,0.00016438,2]
[363347969,1748687146240,-430.0,0.00016438,2]
[363347970,1748687146266,-430.0,0.00016438,2]
[363347971,1748687146289,-430.0,0.00016438,2]
[363347972,1748687146312,-430.0,0.00016438,2]
[363347973,1748687146530,-401.20884775,0.00016438,2]
[363347974,1748687146559,-430.0,0.00016438,2]
[363347975,1748687146581,-368.49301855,0.00016438,2]
[363347976,1748687146603,-465.16,0.00016438,2]
[363347977,1748687146627,-688.72,0.00016438,2]
[363347978,1748687146648,-421.25219529,0.00016438,2]
[363347979,1748687146669,-430.0,0.00016438,2]
[363347980,1748687146690,-430.0,0.00016438,2]
[363347981,1748687146711,-430.0,0.00016438,2]
[363347982,1748687146732,-430.0,0.00016438,2]
[363347983,1748687146753,-415.7923205,0.00016438,2]
[363347984,1748687146776,-430.0,0.00016438,2]
[363347985,1748687146797,-340.0,0.00016438,2]
[363347986,1748687146820,-430.0,0.00016438,2]
[363347987,1748687146851,-430.0,0.00016438,2]
[363347988,1748687146876,-368.99271537,0.00016438,2]
[363347989,1748687146900,-430.0,0.00016438,2]
[363347990,1748687146924,-564.43,0.00016438,2]
[363347991,1748687146947,-430.0,0.00016438,2]
[363347992,1748687146969,-430.0,0.00016438,2]
[363347993,1748687146993,-430.0,0.00016438,2]
[363347994,1748687147017,-430.0,0.00016438,2]
[363347995,1748687147040,-506.45264645,0.00016438,2]
[363347996,1748687147063,-430.0,0.00016438,2]
[363347997,1748687147086,-300.0,0.00016438,2]
[363347998,1748687147109,-430.0,0.00016438,2]
[363347999,1748687147132,-430.0,0.00016438,2]
[363348000,1748687147153,-430.0,0.00016438,2]
[363348001,1748687147177,-430.0,0.00016438,2]
[363348002,1748687147210,-430.0,0.00016438,2]
[363348003,1748687147233,-430.0,0.00016438,2]
[363348004,1748687147255,-430.0,0.00016438,2]
[363348005,1748687147276,-430.0,0.00016438,2]
[363348006,1748687147298,-430.0,0.00016438,2]
[363348007,1748687147321,-430.0,0.00016438,2]
[363348008,1748687147344,-430.0,0.00016438,2]
[363348009,1748687147366,-430.0,0.00016438,2]
[363348010,1748687147389,-546.27670292,0.00016438,2]
[363348011,1748687147411,-430.0,0.00016438,2]
[363348012,1748687147432,-430.0,0.00016438,2]
[363348013,1748687147457,-430.0,0.00016438,2]
[363348014,1748687147480,-430.0,0.00016438,2]
[363348015,1748687147502,-430.0,0.00016438,2]
[363348016,1748687147527,-430.0,0.00016438,2]
[363348017,1748687147548,-435.4862229,0.00016438,2]
[363348018,1748687147572,-430.0,0.00016438,2]
[363348019,1748687147595,-430.0,0.00016438,2]
[363348020,1748687147616,-310.20887027,0.00016438,2]
[363348021,1748687147638,-430.0,0.00016438,2]
[363348022,1748687147663,-430.0,0.00016712,2]
[363348023,1748687147688,-430.0,0.00016712,2]
[363348024,1748687147711,-430.0,0.00016712,2]
[363348025,1748687147734,-430.0,0.00016712,2]
[363348026,1748687147757,-430.0,0.00016712,2]
[363348027,1748687147781,-430.0,0.00016712,2]
[363348028,1748687147807,-1835.86,0.00016712,2]
[363348029,1748687147834,-437.57,0.00016712,2]
[363348030,1748687147857,-430.0,0.00016712,2]
[363348031,1748687147885,-430.0,0.00016712,2]
[363348032,1748687147908,-154.4034213,0.00016712,2]
[363348033,1748687147934,-430.0,0.00016712,2]
[363348034,1748687147959,-465.16,0.00016712,2]
[363348035,1748687147982,-688.72,0.00016712,2]
[363348036,1748687148008,-430.0,0.00016712,2]
[363348037,1748687148033,-430.0,0.00016712,2]
[363348038,1748687148058,-564.43,0.00016712,2]
[363348039,1748687148082,-533.09,0.00016712,2]
[363348040,1748687148107,-430.0,0.00016712,2]
[363348041,1748687148131,-430.0,0.00016712,2]
[363348042,1748687148156,-80.43476752,0.00016712,2]
[363348047,1748687228132,-300.0,0.00016437,2]
[363348048,1748687228155,-328.56390236,0.00016438,2]
[363348049,1748687229113,-106.34759008,0.00016438,2]
[363348050,1748687229136,-188.12994965,0.00016438,2]
[363348052,1748687233110,-241.87005035,0.00016438,2]
[363348053,1748687233132,-52.91488006,0.00016438,2]
[363348054,1748687236110,-377.08511994,0.00016438,2]
[363348055,1748687236133,-470.0,0.00016438,2]
[363348056,1748687236157,-430.0,0.00016438,2]
[363348057,1748687236181,-430.0,0.00016438,2]
[363348058,1748687236203,-400.0,0.00016438,2]
[363348059,1748687236225,-320.0,0.00016438,2]
[363348060,1748687236248,-430.0,0.00016438,2]
[363348061,1748687236272,-2879.6,0.00016438,2]
[363348062,1748687236296,-490.67,0.00016438,2]
[363348063,1748687236319,-764.65,0.00016438,2]
[363348064,1748687236344,-4.52158344,0.00016438,2]
[363348067,1748687252097,-425.47841656,0.00016438,2]
[363348068,1748687252125,-680.93,0.00016438,2]
[363348069,1748687252150,-273.17,0.00016438,2]
[363348070,1748687252175,-349.56523248,0.00016712,2]
[363348071,1748687252211,-430.0,0.00016712,2]
[363348072,1748687252235,-201.05149936,0.00016712,2]
[363348073,1748687252260,-430.0,0.00016712,2]
[363348074,1748687252285,-522.76,0.00016712,2]
[363348075,1748687252312,-55.96050677,0.00016712,2]
[363348076,1748687253099,-374.03949323,0.00016712,2]
[363348077,1748687253125,-430.0,0.00016712,2]
[363348078,1748687253151,-361.88483494,0.00016712,2]
[363348079,1748687253177,-430.0,0.00016712,2]
[363348080,1748687253202,-430.0,0.00016712,2]
[363348081,1748687253389,-2879.6,0.00016712,2]
[363348082,1748687253416,-490.67,0.00016712,2]
[363348083,1748687253440,-764.65,0.00016712,2]
[363348084,1748687253469,-430.0,0.00016712,2]
[363348085,1748687253496,-680.93,0.00016712,2]
[363348086,1748687253518,-160.0,0.0001692,2]
[363348087,1748687253541,-430.0,0.00016986,2]
[363348088,1748687253565,-430.0,0.00016986,2]